bitfinex/quotes_BTCUSD_20250822
["timestamp","ask_amount","ask_price","bid_price","bid_amount"]
[1755891068743,0.00702,116950.0,116940.0,0.65942665]
[1755891069259,0.1565,116950.0,116940.0,0.63168965]
[1755891070448,0.16450826,116950.0,116940.0,0.63168965]
[1755891071695,0.16450826,116950.0,116940.0,0.63365965]
[1755891071902,0.1565,116950.0,116940.0,0.63168965]
[1755891072086,0.16450896,116950.0,116940.0,0.63168965]
[1755891073218,0.16450896,116950.0,116940.0,0.36515965]
[1755891073437,0.1565,116950.0,116940.0,0.36318965]
[1755891076450,0.1565,116950.0,116940.0,0.36515965]
[1755891076655,0.1565,116950.0,116940.0,0.36318965]
[1755891077850,0.1565,116950.0,116940.0,0.36515965]
[1755891078895,0.1565,116950.0,116940.0,0.36318965]
[1755891079141,0.1565,116950.0,116940.0,0.36515965]
[1755891080074,0.15148,116950.0,116940.0,0.36515965]
[1755891081139,0.1535,116950.0,116940.0,0.36515965]
[1755891081543,0.00402,116950.0,116940.0,0.36515965]
[1755891082374,0.002,116950.0,116940.0,0.36515965]
[1755891082781,0.002,116950.0,116940.0,0.51745965]
[1755891083004,0.002,116950.0,116940.0,0.96547353]
[1755891083206,0.002,116950.0,116940.0,0.51745965]
[1755891083389,0.002,116950.0,116940.0,0.57899544]
[1755891084239,0.002,116950.0,116940.0,0.42669544]
[1755891084579,0.00702,116950.0,116940.0,0.42669544]
[1755891085003,0.00702,116950.0,116940.0,0.69322544]
[1755891085216,0.00702,116950.0,116940.0,0.63168965]
[1755891085855,0.15646,116950.0,116940.0,0.63168965]
[1755891087577,0.15646,116950.0,116940.0,0.53168965]
[1755891087787,0.15646,116950.0,116940.0,0.63168965]
[1755891088009,0.24334475,116950.0,116940.0,0.27632]
[1755891088227,0.58334475,116950.0,116940.0,0.27632]
[1755891088678,0.59135103,116950.0,116940.0,0.27632]
[1755891088888,0.58334475,116950.0,116940.0,0.27632]
[1755891089320,0.58334475,116950.0,116940.0,0.17632]
[1755891089523,0.58334475,116950.0,116940.0,0.27632]
[1755891089938,0.58334475,116950.0,116940.0,0.17632]
[1755891090255,0.58334475,116950.0,116940.0,0.27632]
[1755891091730,0.58334475,116950.0,116940.0,0.17632]
[1755891091881,0.58334475,116950.0,116940.0,0.27632]
[1755891094869,0.65008307,116950.0,116940.0,0.17632]
[1755891096145,0.69324009,116950.0,116940.0,0.17632]
[1755891096567,0.69224009,116950.0,116940.0,0.17532]
[1755891096775,0.69224009,116950.0,116940.0,0.17432]
[1755891096983,0.69324009,116950.0,116940.0,0.17532]
[1755891097168,0.69324009,116950.0,116940.0,0.17432]
[1755891097384,0.69124009,116950.0,116940.0,0.17332]
[1755891097660,0.69824009,116950.0,116940.0,0.17432]
[1755891097902,0.70622793,116950.0,116940.0,0.17432]
[1755891098263,0.69824009,116950.0,116940.0,0.17432]
[1755891099378,0.70622263,116950.0,116940.0,0.17432]
[1755891099805,0.7062225,116950.0,116940.0,0.17432]
[1755891100324,0.71961307,116950.0,116940.0,0.17432]
[1755891101597,0.71961307,116950.0,116940.0,0.1708742]
[1755891102600,0.71960772,116950.0,116940.0,0.1708742]
[1755891106410,0.70621715,116950.0,116940.0,0.1708742]
[1755891108268,0.69824009,116950.0,116940.0,0.1708742]
[1755891108486,0.70621252,116950.0,116940.0,0.1708742]
[1755891108848,0.7221569,116950.0,116940.0,0.1708742]
[1755891109254,0.72215679,116950.0,116940.0,0.1708742]
[1755891110319,0.73554768,116950.0,116940.0,0.1708742]
[1755891110536,0.90656093,116950.0,116940.0,0.1708742]
[1755891110711,0.92492933,116950.0,116940.0,0.1708742]
[1755891111351,0.92092933,116950.0,116940.0,0.1698742]
[1755891111550,0.92092975,116950.0,116940.0,0.1698742]
[1755891111792,0.92692975,116950.0,116940.0,0.1708742]
[1755891112015,0.93290886,116950.0,116940.0,0.1708742]
[1755891112456,0.92990886,116950.0,116940.0,0.1708742]
[1755891112754,0.9339092,116950.0,116940.0,0.1708742]
[1755891113423,0.95696318,116950.0,116940.0,0.1708742]
[1755891114689,0.95696633,116950.0,116940.0,0.1708742]
[1755891115321,0.95697769,116950.0,116940.0,0.1708742]
[1755891116787,0.9435868,116950.0,116940.0,0.1708742]
[1755891117493,0.97424541,116950.0,116940.0,0.1708742]
[1755891117736,0.96629022,116950.0,116940.0,0.1708742]
[1755891117964,0.97427417,116950.0,116940.0,0.1708742]
[1755891118212,0.96629022,116950.0,116940.0,0.1708742]
[1755891118447,0.97428213,116950.0,116940.0,0.1708742]
[1755891118668,0.97428162,116950.0,116940.0,0.1708742]
[1755891120109,0.98767356,116950.0,116940.0,0.1708742]
[1755891120610,0.79360633,116950.0,116940.0,0.1708742]
[1755891120886,0.96461958,116950.0,116940.0,0.1708742]
[1755891121141,0.79360633,116950.0,116940.0,0.1708742]
[1755891122059,0.96461958,116950.0,116940.0,0.1708742]
[1755891122477,0.79360633,116950.0,116940.0,0.1708742]
[1755891122969,0.96461958,116950.0,116940.0,0.1708742]
[1755891124098,0.79360633,116950.0,116940.0,0.1708742]
[1755891124598,0.83939872,116950.0,116940.0,0.1708742]
[1755891125097,1.01041197,116950.0,116940.0,0.1708742]
[1755891125313,0.83939872,116950.0,116940.0,0.1708742]
[1755891125528,0.83939872,116950.0,116940.0,0.1728642]
[1755891125529,0.7675604,116950.0,116940.0,0.1728642]
[1755891125740,0.39684732,116950.0,116940.0,0.1728642]
[1755891125981,0.37418678,116950.0,116940.0,0.1728642]
[1755891126221,0.37626678,116950.0,116940.0,0.1728642]
[1755891126454,0.59690862,116950.0,116940.0,0.1728642]
[1755891126675,0.93690934,116950.0,116940.0,0.1728642]
[1755891129327,0.94002934,116950.0,116940.0,0.1728642]
[1755891130293,0.9789618,116950.0,116940.0,0.1728642]
[1755891130517,0.9758418,116950.0,116940.0,0.1728642]
[1755891130733,0.9810418,116950.0,116940.0,0.1728642]
[1755891131223,1.0522818,116950.0,116940.0,0.1728642]
[1755891132147,1.0522818,116950.0,116940.0,0.1708742]
[1755891134861,1.0442869,116950.0,116940.0,0.1708742]
[1755891135086,1.05229227,116950.0,116940.0,0.1708742]
[1755891135559,1.05229297,116950.0,116940.0,0.1708742]
[1755891139321,1.04701297,116950.0,116940.0,0.1756842]
[1755891139525,1.04701297,116950.0,116940.0,0.1728642]
[1755891139737,1.01058735,116950.0,116940.0,0.1728642]
[1755891140351,0.86130735,116950.0,116940.0,0.1728642]
[1755891140564,1.01058735,116950.0,116940.0,0.1728642]
[1755891142335,0.86130735,116950.0,116940.0,0.1728642]
[1755891142550,1.01054735,116950.0,116940.0,0.1728642]
[1755891142967,1.02393843,116950.0,116940.0,0.1728642]
[1755891143397,1.01793761,116950.0,116940.0,0.1728642]
[1755891144049,1.01793933,116950.0,116940.0,0.1728642]
[1755891144271,0.51125031,116950.0,116940.0,0.1756842]
[1755891144485,0.62611816,116950.0,116940.0,0.1756842]
[1755891144695,0.95272708,116950.0,116940.0,0.1756842]
[1755891145361,0.79548521,116950.0,116940.0,0.1756842]
[1755891145576,0.94072521,116950.0,116940.0,0.2756842]
[1755891145807,0.60372521,116950.0,116940.0,0.2756842]
[1755891146274,0.55879275,116950.0,116940.0,0.30225262]
[1755891146485,0.55879275,116950.0,116940.0,0.2756842]
[1755891146486,0.56079275,116950.0,116940.0,0.2756842]
[1755891146700,0.89879275,116950.0,116940.0,0.2746842]
[1755891147138,0.89979275,116950.0,116940.0,0.2756842]
[1755891147350,0.89679275,116950.0,116940.0,0.2756842]
[1755891147567,0.89879275,116950.0,116940.0,0.2756842]
[1755891149116,0.93797945,116950.0,116940.0,0.2756842]
[1755891149362,0.93797945,116950.0,116940.0,0.2728642]
[1755891149585,0.93797945,116950.0,116940.0,0.2756842]
[1755891149808,0.93797945,116950.0,116940.0,0.2728642]
[1755891151045,0.95136944,116950.0,116940.0,0.2728642]
[1755891151250,0.91218274,116950.0,116940.0,0.2728642]
[1755891151716,0.91746274,116950.0,116940.0,0.2728642]
[1755891152795,0.91218274,116950.0,116940.0,0.2728642]
[1755891153238,0.91430274,116950.0,116940.0,0.2728642]
[1755891153482,0.91746274,116950.0,116940.0,0.2708742]
[1755891153708,0.97284269,116950.0,116940.0,0.1708742]
[1755891154558,0.98083419,116950.0,116940.0,0.1708742]
[1755891156286,0.9674442,116950.0,116940.0,0.1708742]
[1755891159152,0.96744543,116950.0,116940.0,0.1708742]
[1755891159781,0.9808367,116950.0,116940.0,0.1708742]
[1755891160507,0.9808367,116950.0,116940.0,0.1698742]
[1755891160508,0.9798367,116950.0,116940.0,0.1698742]
[1755891160738,0.9818367,116950.0,116940.0,0.1708742]
[1755891160983,1.01623901,116950.0,116940.0,0.1708742]
[1755891161233,1.01923901,116950.0,116940.0,0.1708742]
[1755891161941,1.00325338,116950.0,116940.0,0.1708742]
[1755891162161,1.01924053,116950.0,116940.0,0.1708742]
[1755891162584,1.00325423,116950.0,116940.0,0.1708742]
[1755891162811,1.0192414,116950.0,116940.0,0.1708742]
[1755891165340,1.0252369,116950.0,116940.0,0.1708742]
[1755891165753,1.0192414,116950.0,116940.0,0.1708742]
[1755891166170,1.02523692,116950.0,116940.0,0.1708742]
[1755891171174,1.02525267,116950.0,116940.0,0.1708742]
[1755891172779,1.02525366,116950.0,116940.0,0.1708742]
[1755891174382,1.02525377,116950.0,116940.0,0.1708742]
[1755891175258,1.02525377,116950.0,116940.0,0.1728542]
[1755891175507,1.02525377,116950.0,116940.0,0.1708742]
[1755891176920,0.87601377,116950.0,116940.0,0.1728542]
[1755891177135,0.87601377,116950.0,116940.0,0.1708742]
[1755891177334,1.02513606,116950.0,116940.0,0.1708742]
[1755891178638,0.87601606,116950.0,116940.0,0.1708742]
[1755891179044,1.02513606,116950.0,116940.0,0.1708742]
[1755891180305,1.02516241,116950.0,116940.0,0.1708742]
[1755891180595,1.01988241,116950.0,116940.0,0.1729142]
[1755891180786,1.01187661,116950.0,116940.0,0.1729142]
[1755891181017,1.01387822,116950.0,116940.0,0.1729142]
[1755891181702,1.02189403,116950.0,116940.0,0.1729142]
[1755891181996,1.01988403,116950.0,116940.0,0.1729142]
[1755891182230,1.01387822,116950.0,116940.0,0.1729142]
[1755891182440,1.01904258,116950.0,116940.0,0.1708742]
[1755891182800,1.02505054,116950.0,116940.0,0.1708742]
[1755891184420,1.0251022,116950.0,116940.0,0.1708742]
[1755891186316,1.02510259,116950.0,116940.0,0.1708742]
[1755891188348,0.9950627,116950.0,116940.0,0.1708742]
[1755891188580,1.19613619,116950.0,116940.0,0.1708742]
[1755891188793,1.21922211,116950.0,116940.0,0.1708742]
[1755891189014,1.21922198,116950.0,116940.0,0.1708742]
[1755891189231,1.21922169,116950.0,116940.0,0.1708742]
[1755891190296,1.04820844,116950.0,116940.0,0.1708742]
[1755891190702,1.21922169,116950.0,116940.0,0.1708742]
[1755891191488,1.21921766,116950.0,116940.0,0.1708742]
[1755891193512,1.2192058,116950.0,116940.0,0.1708742]
[1755891196804,1.24986441,116950.0,116940.0,0.1708742]
[1755891197009,1.23647314,116950.0,116940.0,0.1708742]
[1755891197298,1.20537804,116950.0,116940.0,0.1708742]
[1755891197510,1.25917601,116950.0,116940.0,0.1708742]
[1755891197913,1.25616915,116950.0,116940.0,0.1708742]
[1755891198077,1.26016915,116950.0,116940.0,0.1708742]
[1755891198500,1.25616915,116950.0,116940.0,0.1698742]
[1755891198948,1.26116915,116950.0,116940.0,0.1698742]
[1755891200212,1.26116915,116950.0,116910.0,0.00044]
[1755891200213,0.51105713,116920.0,116910.0,0.00044]
[1755891200457,0.86881408,116920.0,116910.0,0.00092141]
[1755891200854,0.89767308,116920.0,116910.0,0.00092141]
[1755891201767,0.91506902,116920.0,116910.0,0.00092141]
[1755891201968,0.91706902,116920.0,116910.0,0.00092141]
[1755891202174,0.93451804,116920.0,116910.0,0.00092141]
[1755891202580,0.93751804,116920.0,116910.0,0.00092141]
[1755891202997,0.97589025,116920.0,116910.0,0.00092141]
[1755891206505,0.97577761,116920.0,116910.0,0.00092141]
[1755891206927,0.96978846,116920.0,116910.0,0.00092141]
[1755891207145,0.97577222,116920.0,116910.0,0.00092141]
[1755891207644,0.97077222,116920.0,116910.0,0.00092141]
[1755891209454,0.95481552,116920.0,116910.0,0.00092141]
[1755891209672,0.97076339,116920.0,116910.0,0.00092141]
[1755891210348,0.99381002,116920.0,116910.0,0.00092141]
[1755891210770,0.98041408,116920.0,116910.0,0.00092141]
[1755891213921,0.99881082,116920.0,116910.0,0.00092141]
[1755891215499,0.99880186,116920.0,116910.0,0.00092141]
[1755891215935,0.99880199,116920.0,116910.0,0.00092141]
[1755891218234,5.99880199,116920.0,116910.0,0.00092141]
[1755891218440,6.02348002,116920.0,116910.0,0.00092141]
[1755891218649,6.0064154,116920.0,116910.0,0.00092141]
[1755891218884,5.8572954,116920.0,116910.0,0.00092141]
[1755891219096,6.02538885,116920.0,116910.0,0.00092141]
[1755891219320,5.9974154,116920.0,116910.0,0.00092141]
[1755891219533,6.0074154,116920.0,116910.0,0.00092141]
[1755891220397,6.05320779,116920.0,116910.0,0.00092141]
[1755891221415,6.05321381,116920.0,116910.0,0.00092141]
[1755891222448,6.0225552,116920.0,116910.0,0.00092141]
[1755891223107,6.04220917,116920.0,116910.0,0.00092141]
[1755891223576,0.52852078,116910.0,116900.0,0.0014]
[1755891223785,5.89163742,116910.0,116900.0,0.0014]
[1755891223957,5.89470742,116910.0,116900.0,0.0014]
[1755891224346,5.90260759,116910.0,116900.0,0.0014]
[1755891224613,5.89161661,116910.0,116900.0,0.0014]
[1755891224806,5.89164097,116910.0,116900.0,0.0014]
[1755891224971,0.52855005,116890.0,116880.0,0.0004]
[1755891225220,1.13980361,116890.0,116880.0,0.0004]
[1755891225381,1.18578115,116890.0,116880.0,0.0004]
[1755891225582,1.19228215,116890.0,116880.0,0.0004]
[1755891226320,1.19528215,116890.0,116880.0,0.0004]
[1755891226519,1.16462717,116890.0,116880.0,0.0004]
[1755891227272,1.01032717,116890.0,116880.0,0.00239]
[1755891227685,1.1901014,116890.0,116880.0,0.00239]
[1755891227888,1.23189765,116890.0,116880.0,0.00239]
[1755891228295,1.23189765,116890.0,116880.0,0.0004]
[1755891228296,1.23707765,116890.0,116880.0,0.0004]
[1755891228504,1.20642342,116890.0,116880.0,0.0004]
[1755891229133,1.20642342,116890.0,116880.0,0.00239]
[1755891229337,1.23708081,116890.0,116880.0,0.00239]
[1755891229561,1.20642342,116890.0,116880.0,0.00239]
[1755891229760,1.20124342,116890.0,116880.0,0.00239]
[1755891230594,1.03017155,116890.0,116880.0,0.00239]
[1755891230800,1.2319524,116890.0,116880.0,0.00239]
[1755891231838,1.2320324,116890.0,116880.0,0.00239]
[1755891232043,1.2372124,116890.0,116880.0,0.00239]
[1755891232245,1.2372124,116890.0,116880.0,0.0004]
[1755891232453,1.2372124,116890.0,116880.0,0.00239]
[1755891232668,1.2372124,116890.0,116880.0,0.0004]
[1755891233087,1.23720684,116890.0,116880.0,0.0004]
[1755891233713,1.22124048,116890.0,116880.0,0.00239]
[1755891233946,1.23720459,116890.0,116880.0,0.00239]
[1755891234279,1.19940834,116890.0,116880.0,0.00239]
[1755891234646,1.19342141,116890.0,116880.0,0.00239]
[1755891234866,1.19940798,116890.0,116880.0,0.00239]
[1755891236228,1.16874604,116890.0,116880.0,0.00239]
[1755891236867,1.16867218,116890.0,116880.0,0.00239]
[1755891237286,1.16867218,116890.0,116880.0,0.0004]
[1755891239632,1.17314235,116890.0,116880.0,0.0004]
[1755891240265,1.17314257,116890.0,116880.0,0.0004]
[1755891240702,1.17310257,116890.0,116880.0,0.00246]
[1755891240914,1.03265649,116890.0,116880.0,0.0004]
[1755891241124,1.20375752,116890.0,116880.0,0.0004]
[1755891241346,1.17310257,116890.0,116880.0,0.0004]
[1755891241562,1.17302257,116890.0,116880.0,0.0004]
[1755891241750,1.02086257,116890.0,116880.0,0.0004]
[1755891241982,1.19667995,116890.0,116880.0,0.0004]
[1755891242181,1.15705544,116890.0,116880.0,0.0004]
[1755891242366,1.02186683,116890.0,116880.0,0.0004]
[1755891242590,1.25533139,116890.0,116880.0,0.0004]
[1755891242836,1.17862683,116890.0,116880.0,0.0004]
[1755891243042,1.17862783,116890.0,116880.0,0.0004]
[1755891243665,1.2092941,116890.0,116880.0,0.0004]
[1755891243876,1.0575341,116890.0,116880.0,0.0004]
[1755891244106,1.2093341,116890.0,116880.0,0.0004]
[1755891244342,1.17866783,116890.0,116880.0,0.0004]
[1755891245723,0.52856469,116880.0,116870.0,0.0004]
[1755891245953,0.86357299,116880.0,116870.0,0.0004]
[1755891246191,0.86663299,116880.0,116870.0,0.0004]
[1755891246423,0.82062883,116880.0,116870.0,0.0004]
[1755891246878,0.86663941,116880.0,116870.0,0.0004]
[1755891247103,0.86712088,116880.0,116870.0,0.0004]
[1755891247347,0.88677485,116880.0,116870.0,0.0004]
[1755891247578,0.84076427,116880.0,116870.0,0.0004]
[1755891248215,0.85542971,116880.0,116870.0,0.0004]
[1755891248486,0.86142971,116880.0,116870.0,0.0004]
[1755891249139,0.87483127,116880.0,116870.0,0.0004]
[1755891251354,0.87484641,116880.0,116870.0,0.0004]
[1755891251563,0.85519244,116880.0,116870.0,0.0004]
[1755891251760,0.84720606,116880.0,116870.0,0.0004]
[1755891251954,0.85519462,116880.0,116870.0,0.0004]
[1755891252650,0.88092662,116880.0,116870.0,0.0004]
[1755891253127,0.90058224,116880.0,116870.0,0.0004]
[1755891253554,0.96163877,116880.0,116870.0,0.0004]
[1755891254233,0.90058224,116880.0,116870.0,0.0004]
[1755891254462,0.96163877,116880.0,116870.0,0.0004]
[1755891255213,0.90058224,116880.0,116870.0,0.0004]
[1755891257221,0.94663269,116880.0,116870.0,0.0004]
[1755891258817,0.92697872,116880.0,116870.0,0.0004]
[1755891260351,0.90301138,116880.0,116870.0,0.0004]
[1755891260579,0.92698825,116880.0,116870.0,0.0004]
[1755891261081,0.92698827,116880.0,116870.0,0.0004]
[1755891261502,0.77526827,116880.0,116870.0,0.0004]
[1755891261727,0.99273827,116880.0,116870.0,0.00246]
[1755891262181,0.99480827,116880.0,116870.0,0.00246]
[1755891262422,0.99786827,116880.0,116870.0,0.00246]
[1755891262875,0.84658827,116880.0,116870.0,0.00246]
[1755891263104,0.98916283,116880.0,116870.0,0.00246]
[1755891263328,1.01985412,116880.0,116870.0,0.00246]
[1755891265612,1.01985412,116880.0,116870.0,0.0004]
[1755891267564,0.86861412,116880.0,116870.0,0.00246]
[1755891267778,1.01969412,116880.0,116870.0,0.00246]
[1755891267991,0.86861412,116880.0,116870.0,0.00246]
[1755891268204,0.98379283,116880.0,116870.0,0.00246]
[1755891268409,0.5769556,116880.0,116870.0,0.00246]
[1755891268640,1.00965803,116880.0,116870.0,0.00246]
[1755891268874,0.96360758,116880.0,116870.0,0.00246]
[1755891269492,0.95563826,116880.0,116870.0,0.00246]
[1755891269698,0.96669795,116880.0,116870.0,0.00246]
[1755891269932,0.96876795,116880.0,116870.0,0.00246]
[1755891270162,0.96876816,116880.0,116870.0,0.00246]
[1755891270367,0.96876822,116880.0,116870.0,0.00246]
[1755891271278,1.01481867,116880.0,116870.0,0.00246]
[1755891271504,0.98216904,116880.0,116870.0,0.00246]
[1755891272367,1.02821949,116880.0,116870.0,0.0004]
[1755891273259,0.99750328,116880.0,116870.0,0.0004]
[1755891273476,1.02823903,116880.0,116870.0,0.0004]
[1755891277405,1.02278903,116880.0,116870.0,0.00247]
[1755891278246,1.02794903,116880.0,116870.0,0.00247]
[1755891278427,1.01194955,116880.0,116870.0,0.00247]
[1755891278632,1.01996336,116880.0,116870.0,0.0004]
[1755891278895,1.02796819,116880.0,116870.0,0.0004]
[1755891279492,1.02796827,116880.0,116870.0,0.0004]
[1755891279698,1.02796827,116880.0,116870.0,0.00247]
[1755891279927,0.66016215,116880.0,116870.0,0.00247]
[1755891280158,0.97659782,116880.0,116870.0,0.00247]
[1755891280592,0.98175782,116880.0,116870.0,0.00247]
[1755891281872,0.98176078,116880.0,116870.0,0.00247]
[1755891282090,1.05826534,116880.0,116870.0,0.00247]
[1755891282308,0.98156078,116880.0,116870.0,0.00247]
[1755891283235,0.80520511,116880.0,116870.0,0.00247]
[1755891283462,0.79764716,116880.0,116870.0,0.00529]
[1755891283682,0.74373952,116880.0,116870.0,0.00529]
[1755891284133,0.57740765,116880.0,116870.0,0.00529]
[1755891284344,0.72776765,116880.0,116870.0,0.00529]
[1755891284555,0.72721222,116880.0,116870.0,0.00529]
[1755891284771,0.73421222,116880.0,116870.0,0.00529]
[1755891285594,0.71582262,116880.0,116870.0,0.00529]
[1755891287436,0.70781779,116880.0,116870.0,0.00529]
[1755891289944,0.72121667,116880.0,116870.0,0.00529]
[1755891290813,0.70376765,116880.0,116870.0,0.10742912]
[1755891291482,0.55340765,116880.0,116870.0,0.10742912]
[1755891291715,0.70336765,116880.0,116870.0,0.10742912]
[1755891291927,0.70336765,116880.0,116870.0,0.10529]
[1755891292563,0.70336765,116880.0,116870.0,0.10247]
[1755891295870,0.70336765,116880.0,116870.0,0.27359]
[1755891297161,0.55340765,116880.0,116870.0,0.27641]
[1755891297407,0.70316765,116880.0,116870.0,0.27641]
[1755891297881,0.6945771,116880.0,116870.0,0.27641]
[1755891298601,0.6905771,116880.0,116870.0,0.27641]
[1755891298819,0.6935771,116880.0,116870.0,0.27641]
[1755891299488,0.6905771,116880.0,116870.0,0.27641]
[1755891299897,0.6935771,116880.0,116870.0,0.27741]
[1755891300327,0.68017822,116880.0,116870.0,0.27741]
[1755891300548,0.68017822,116880.0,116870.0,0.27459]
[1755891300760,0.68017822,116880.0,116870.0,0.27741]
[1755891300996,0.68017822,116880.0,116870.0,0.27459]
[1755891303524,0.69357625,116880.0,116870.0,0.27459]
[1755891303737,0.69357625,116880.0,116870.0,0.27741]
[1755891303958,0.69357625,116880.0,116870.0,0.75292288]
[1755891304161,0.69357625,116880.0,116870.0,0.72542388]
[1755891304162,0.66784425,116880.0,116870.0,0.72542388]
[1755891304375,0.32784425,116880.0,116870.0,0.72542388]
[1755891304589,0.31444622,116880.0,116870.0,0.72542388]
[1755891306359,0.31444622,116880.0,116870.0,0.27741]
[1755891306574,0.31444622,116880.0,116870.0,0.75320488]
[1755891308125,0.16468622,116880.0,116870.0,0.75320488]
[1755891308351,0.31436622,116880.0,116870.0,0.75320488]
[1755891309205,0.31436622,116880.0,116870.0,0.302371]
[1755891309414,0.31436622,116880.0,116870.0,0.27741]
[1755891309683,0.31436622,116880.0,116870.0,0.27459]
[1755891309902,0.31436622,116880.0,116870.0,0.27741]
[1755891310111,0.31436622,116880.0,116870.0,0.72542388]
[1755891310331,0.31436622,116880.0,116870.0,0.34717239]
[1755891310545,0.31436622,116880.0,116870.0,0.72260388]
[1755891310759,0.31436622,116880.0,116870.0,0.27459]
[1755891311842,0.31436622,116880.0,116870.0,0.72542388]
[1755891313247,0.31436622,116880.0,116870.0,0.27459]
[1755891313448,0.31436622,116880.0,116870.0,0.72542388]
[1755891313677,0.31436622,116880.0,116870.0,0.79800627]
[1755891315199,0.31436622,116880.0,116870.0,0.34717239]
[1755891315414,0.31436622,116880.0,116870.0,0.72260388]
[1755891315619,0.31436622,116880.0,116870.0,0.27459]
[1755891315825,0.31436622,116880.0,116870.0,0.72260388]
[1755891316655,0.31436622,116880.0,116870.0,0.27459]
[1755891317212,0.31436622,116880.0,116870.0,0.72260388]
[1755891317472,0.31436622,116880.0,116870.0,0.79518627]
[1755891318681,0.31436622,116880.0,116870.0,0.34717239]
[1755891318889,0.31436622,116880.0,116870.0,0.72260388]
[1755891319032,0.31436622,116880.0,116870.0,0.27459]
[1755891319235,0.31436622,116880.0,116870.0,0.72260388]
[1755891322155,0.31436622,116880.0,116870.0,0.72542388]
[1755891322777,0.31436622,116880.0,116870.0,0.27459]
[1755891322915,0.31436622,116880.0,116870.0,0.75038488]
[1755891324319,0.31436622,116880.0,116870.0,0.80633931]
[1755891325199,0.31436622,116880.0,116870.0,0.80915931]
[1755891325999,0.31436622,116880.0,116870.0,0.80633931]
[1755891327901,0.31436622,116880.0,116870.0,0.302371]
[1755891328107,0.31436622,116880.0,116870.0,0.80633931]
[1755891328945,0.31436622,116880.0,116870.0,0.302371]
[1755891329163,0.31933622,116880.0,116870.0,0.302371]
[1755891329378,0.31731622,116880.0,116870.0,0.80633931]
[1755891331040,0.31436622,116880.0,116870.0,0.80633931]
[1755891332011,0.31967622,116880.0,116870.0,0.302371]
[1755891332237,0.31967622,116880.0,116870.0,0.27459]
[1755891332424,0.31436622,116880.0,116870.0,0.77855831]
[1755891336075,0.31967622,116880.0,116870.0,0.27459]
[1755891336295,0.31967622,116880.0,116870.0,0.77855831]
[1755891336496,0.31967622,116880.0,116870.0,0.35276783]
[1755891336700,0.31967622,116880.0,116870.0,0.77648831]
[1755891336933,0.31967622,116880.0,116870.0,0.27252]
[1755891337149,0.31967622,116880.0,116870.0,0.77648831]
[1755891338056,0.31967622,116880.0,116870.0,0.27252]
[1755891338286,0.39032575,116880.0,116870.0,0.27252]
[1755891340255,0.31967622,116880.0,116870.0,0.27252]
[1755891342639,0.31967622,116880.0,116870.0,0.299812]
[1755891343076,0.31436622,116880.0,116870.0,0.301852]
[1755891343299,0.31967622,116880.0,116870.0,0.299812]
[1755891345363,0.31967622,116880.0,116870.0,0.27252]
[1755891347786,0.73032575,116880.0,116870.0,0.27252]
[1755891348203,0.75605075,116880.0,116870.0,0.27252]
[1755891350633,0.77349977,116880.0,116870.0,0.27252]
[1755891350849,0.78151096,116880.0,116870.0,0.17252]
[1755891351051,0.80597625,116880.0,116870.0,0.17252]
[1755891351296,0.81937508,116880.0,116870.0,0.17252]
[1755891352720,0.99049075,116880.0,116870.0,0.17252]
[1755891353061,0.81937508,116880.0,116870.0,0.17252]
[1755891353261,0.81936884,116880.0,116870.0,0.17252]
[1755891354342,0.98448263,116880.0,116870.0,0.17252]
[1755891354571,0.99048289,116880.0,116870.0,0.17252]
[1755891354795,1.02956966,116880.0,116870.0,0.17252]
[1755891356177,1.00348321,116880.0,116870.0,0.17252]
[1755891356615,1.00548321,116880.0,116870.0,0.17152]
[1755891357045,1.00948321,116880.0,116870.0,0.17152]
[1755891357483,1.03256966,116880.0,116870.0,0.17152]
[1755891357924,1.03256966,116880.0,116870.0,0.16935298]
[1755891358360,1.01917083,116880.0,116870.0,0.16935298]
[1755891359666,1.00515938,116880.0,116870.0,0.16935298]
[1755891359888,1.01910202,116880.0,116870.0,0.16935298]
[1755891360332,1.01910192,116880.0,116870.0,0.16935298]
[1755891360546,0.92449802,116880.0,116870.0,0.16935298]
[1755891360753,0.94845198,116880.0,116870.0,0.16935298]
[1755891361587,0.96185258,116880.0,116870.0,0.16935298]
[1755891366291,0.61797046,116880.0,116870.0,0.16935298]
[1755891366420,0.76797046,116880.0,116870.0,0.16935298]
[1755891366614,0.92568553,116880.0,116870.0,0.16935298]
[1755891367425,0.94877198,116880.0,116870.0,0.16935298]
[1755891367825,0.93280267,116880.0,116870.0,0.16935298]
[1755891368042,0.94858919,116880.0,116870.0,0.16935298]
[1755891368427,0.94859004,116880.0,116870.0,0.16935298]
[1755891368856,0.94859018,116880.0,116870.0,0.16935298]
[1755891369875,0.96199059,116880.0,116870.0,0.16935298]
[1755891371235,0.99272634,116880.0,116870.0,0.16935298]
[1755891373989,0.99272983,116880.0,116870.0,0.16935298]
[1755891375488,0.96974502,116880.0,116870.0,0.16935298]
[1755891375693,0.9927597,116880.0,116870.0,0.16935298]
[1755891376341,0.96974502,116880.0,116870.0,0.16935298]
[1755891376934,0.95577293,116880.0,116870.0,0.16935298]
[1755891377136,1.01583832,116880.0,116870.0,0.16935298]
[1755891377522,1.01585279,116880.0,116870.0,0.16935298]
[1755891380129,0.98511704,116880.0,116870.0,0.16935298]
[1755891384169,0.66400137,116880.0,116870.0,0.17134298]
[1755891384442,0.80837137,116880.0,116870.0,0.17134298]
[1755891384658,0.82576679,116880.0,116870.0,0.17134298]
[1755891384898,0.77971634,116880.0,116870.0,0.17134298]
[1755891385766,0.95596201,116880.0,116870.0,0.17134298]
[1755891386207,0.92596959,116880.0,116870.0,0.17134298]
[1755891386419,1.00209236,116880.0,116870.0,0.16935298]
[1755891386841,1.00209183,116880.0,116870.0,0.16935298]
[1755891387094,0.99407296,116880.0,116870.0,0.16935298]
[1755891387300,1.00209183,116880.0,116870.0,0.16935298]
[1755891388121,0.971296,116880.0,116870.0,0.16935298]
[1755891388777,0.98469635,116880.0,116870.0,0.16935298]
[1755891389416,0.98469557,116880.0,116870.0,0.16935298]
[1755891393532,1.20757557,116880.0,116870.0,0.16935298]
[1755891395312,1.1995567,116880.0,116870.0,0.16935298]
[1755891395556,1.2075688,116880.0,116870.0,0.16935298]
[1755891396046,1.20756928,116880.0,116870.0,0.16935298]
[1755891397531,1.23835644,116880.0,116870.0,0.16935298]
[1755891401387,1.22232187,116880.0,116870.0,0.16935298]
[1755891401585,1.23835919,116880.0,116870.0,0.16935298]
[1755891404490,1.21430551,116880.0,116870.0,0.16935298]
[1755891404701,1.23836089,116880.0,116870.0,0.16935298]
[1755891405106,1.23836111,116880.0,116870.0,0.16935298]
[1755891405323,1.23836093,116880.0,116870.0,0.16935298]
[1755891407686,1.23836092,116880.0,116870.0,0.16935298]
[1755891408980,1.23836003,116880.0,116870.0,0.16935298]